lending/lending_fUSD_20250819
["ID","MTS","AMOUNT","RATE_DAILY","PERIOD"]
[380291545,1755637852083,-1648.5126533,0.00016361,2]
[380291546,1755637852092,-1750.79630909,0.00016361,2]
[380291547,1755637852113,-2500.0,0.00016364,2]
[380291548,1755637852125,-1348.8115877,0.00016364,2]
[380291549,1755637852137,-2500.0,0.00016364,2]
[380291550,1755637852148,-2500.0,0.00016364,2]
[380291551,1755637852160,-2500.0,0.00016364,2]
[380291552,1755637852171,-279.60212643,0.00016364,2]
[380291553,1755637852181,-1805.68429012,0.00016364,2]
[380291554,1755637852194,-1716.08551539,0.00016364,2]
[380291555,1755637852205,-2500.0,0.00016364,2]
[380291556,1755637852215,-231.1382043,0.00016391,2]
[380291557,1755637852227,-40000.0,0.000164,3]
[380291558,1755637852238,-500.0,0.00016438,2]
[380291559,1755637852249,-3387.2,0.00016438,2]
[380291560,1755637852260,-500.0,0.00016438,2]
[380291561,1755637852271,-151.0,0.00016438,2]
[380291562,1755637852283,-151.0,0.00016438,2]
[380291563,1755637852294,-151.0,0.00016438,2]
[380291564,1755637852305,-151.0,0.00016438,2]
[380291565,1755637852316,-151.0,0.00016438,2]
[380291566,1755637852327,-151.0,0.00016438,2]
[380291567,1755637852338,-151.0,0.00016438,2]
[380291568,1755637852349,-151.0,0.00016438,2]
[380291569,1755637852361,-221.43,0.00016438,2]
[380291570,1755637852372,-5526.4,0.00016438,2]
[380291571,1755637852385,-2009.02559306,0.00016438,2]
[380291572,1755637852398,-300.0,0.00016438,2]
[380291573,1755637852409,-1318.54,0.00016438,2]
[380291574,1755637852420,-600.0,0.00016438,2]
[380291575,1755637852432,-600.0,0.00016438,2]
[380291576,1755637852443,-600.0,0.00016438,2]
[380291577,1755637852453,-600.0,0.00016438,2]
[380291578,1755637852464,-600.0,0.00016438,2]
[380291579,1755637852475,-600.0,0.00016438,2]
[380291580,1755637852486,-600.0,0.00016438,2]
[380291581,1755637852497,-600.0,0.00016438,2]
[380291582,1755637852508,-600.0,0.00016438,2]
[380291583,1755637852518,-600.0,0.00016438,2]
[380291584,1755637852529,-600.0,0.00016438,2]
[380291585,1755637852540,-179.49,0.00016466,2]
[380291586,1755637852551,-301.0,0.0001648,3]
[380291587,1755637852561,-151.0,0.00016481,2]
[380291588,1755637852572,-151.0,0.00016481,2]
[380291589,1755637852583,-211.950238,0.00016481,2]
[380291590,1755637852594,-151.88638,0.00016481,2]
[380291591,1755637852606,-211.950238,0.00016481,2]
[380291592,1755637852616,-211.950238,0.00016481,2]
[380291593,1755637852627,-211.950238,0.00016481,2]
[380291594,1755637852638,-203.328012,0.00016481,2]
[380291595,1755637852649,-203.328012,0.00016481,2]
[380291596,1755637852660,-203.328012,0.00016481,2]
[380291597,1755637852671,-203.328012,0.00016481,2]
[380291598,1755637852681,-151.0,0.00016481,2]
[380291599,1755637852692,-151.0,0.00016481,2]
[380291600,1755637852703,-151.515839,0.00016481,2]
[380291601,1755637852714,-151.0,0.00016481,2]
[380291602,1755637852724,-151.0,0.00016481,2]
[380291603,1755637852734,-151.0,0.00016481,2]
[380291604,1755637852745,-151.0,0.00016481,2]
[380291605,1755637852755,-151.0,0.00016481,2]
[380291606,1755637852766,-151.0,0.00016481,2]
[380291607,1755637852776,-151.0,0.00016481,2]
[380291608,1755637852786,-151.0,0.00016481,2]
[380291609,1755637852798,-321.43622,0.00016481,2]
[380291610,1755637852808,-288.338433,0.00016481,2]
[380291611,1755637852822,-321.43622,0.00016481,2]
[380291612,1755637852833,-321.43622,0.00016481,2]
[380291613,1755637852843,-321.43622,0.00016481,2]
[380291614,1755637852853,-352.476712,0.00016481,2]
[380291615,1755637852865,-352.476712,0.00016481,2]
[380291616,1755637852875,-352.476712,0.00016481,2]
[380291617,1755637852886,-352.476712,0.00016481,2]
[380291618,1755637852897,-211.941035,0.00016481,2]
[380291619,1755637852908,-211.941035,0.00016481,2]
[380291620,1755637852919,-211.941035,0.00016481,2]
[380291621,1755637852929,-211.941035,0.00016481,2]
[380291622,1755637852940,-168.75726635,0.00016508,14]
[380291623,1755637852950,-150.0,0.00016517,2]
[380291624,1755637852961,-150.00049366,0.00016582,2]
[380291625,1755637852971,-150.0,0.00016593,2]
[380291626,1755637852982,-352.72506301,0.000166,2]
[380291627,1755637852992,-500.0,0.0001662,2]
[380291628,1755637853004,-500.0,0.0001662,2]
[380291629,1755637853015,-500.0,0.0001662,2]
[380291630,1755637853025,-2000.0,0.00016644,2]
[380291631,1755637853037,-150.0,0.00016651,2]
[380291632,1755637853404,-150.0,0.00016699,2]
[380291633,1755637853414,-50000.0,0.000167,2]
[380291634,1755637853424,-151.0,0.000167,2]
[380291635,1755637853433,-151.0,0.000167,2]
[380291636,1755637853442,-151.0,0.000167,2]
[380291637,1755637853451,-151.0,0.000167,2]
[380291638,1755637853461,-151.0,0.000167,2]
[380291639,1755637853471,-151.0,0.000167,2]
[380291640,1755637853480,-151.0,0.000167,2]
[380291641,1755637853490,-151.0,0.000167,2]
[380291642,1755637853499,-151.0,0.000167,2]
[380291643,1755637853508,-231.799868,0.000167,2]
[380291644,1755637853518,-151.0,0.000167,2]
[380291645,1755637853527,-151.0,0.000167,2]
[380291646,1755637853537,-151.0,0.000167,2]
[380291647,1755637853547,-332.971178,0.000167,2]
[380291648,1755637853557,-332.971178,0.000167,2]
[380291649,1755637853566,-151.0,0.000167,2]
[380291650,1755637853575,-332.971178,0.000167,2]
[380291651,1755637853584,-151.0,0.000167,2]
[380291652,1755637853594,-332.971178,0.000167,2]
[380291653,1755637853604,-151.0,0.000167,2]
[380291654,1755637853613,-1824.734367,0.000167,2]
[380291655,1755637853623,-1824.734367,0.000167,2]
[380291656,1755637853632,-151.0,0.000167,2]
[380291657,1755637853641,-151.0,0.000167,2]
[380291658,1755637853651,-1824.734367,0.000167,2]
[380291659,1755637853660,-151.0,0.000167,2]
[380291660,1755637853669,-151.0,0.000167,2]
[380291661,1755637853679,-1824.734367,0.000167,2]
[380291662,1755637853688,-151.0,0.000167,2]
[380291663,1755637853698,-151.0,0.000167,2]
[380291664,1755637853707,-151.0,0.000167,2]
[380291665,1755637853717,-1286.5646,0.000167,2]
[380291666,1755637853726,-151.0,0.000167,2]
[380291667,1755637853736,-523.332684,0.000167,2]
[380291668,1755637853745,-1286.5646,0.000167,2]
[380291669,1755637853755,-523.332684,0.000167,2]
[380291670,1755637853765,-1286.5646,0.000167,2]
[380291671,1755637853774,-1286.5646,0.000167,2]
[380291672,1755637853784,-523.332684,0.000167,2]
[380291673,1755637853793,-151.0,0.000167,2]
[380291674,1755637853803,-152.551501,0.000167,2]
[380291675,1755637853813,-425.535602,0.000167,2]
[380291676,1755637853827,-425.535602,0.000167,2]
[380291677,1755637853837,-468.325856,0.000167,2]
[380291678,1755637853846,-425.535602,0.000167,2]
[380291679,1755637853857,-468.325856,0.000167,2]
[380291680,1755637853866,-425.535602,0.000167,2]
[380291681,1755637853875,-468.325856,0.000167,2]
[380291682,1755637853884,-468.325856,0.000167,2]
[380291683,1755637853895,-818.699908,0.000167,2]
[380291684,1755637853904,-151.0,0.000167,2]
[380291685,1755637853913,-818.699908,0.000167,2]
[380291686,1755637853923,-818.699908,0.000167,2]
[380291687,1755637853932,-151.0,0.000167,2]
[380291688,1755637853942,-818.699908,0.000167,2]
[380291689,1755637853952,-151.0,0.000167,2]
[380291690,1755637853961,-151.0,0.000167,2]
[380291691,1755637853970,-551.065868,0.000167,2]
[380291692,1755637853979,-551.065868,0.000167,2]
[380291693,1755637853989,-551.065868,0.000167,2]
[380291694,1755637853998,-160.78157,0.000167,2]
[380291695,1755637854007,-411.984253,0.000167,2]
[380291696,1755637854017,-411.984253,0.000167,2]
[380291697,1755637854026,-551.065868,0.000167,2]
[380291698,1755637854036,-411.984253,0.000167,2]
[380291699,1755637854045,-300.0,0.000167,3]
[380291700,1755637854055,-300.0,0.000167,3]
[380291701,1755637854065,-411.984253,0.000167,2]
[380291702,1755637854075,-300.0,0.000167,3]
[380291703,1755637854084,-300.0,0.000167,3]
[380291704,1755637854094,-300.0,0.000167,3]
[380291705,1755637854104,-263.469567,0.000167,2]
[380291706,1755637854115,-263.469567,0.000167,2]
[380291707,1755637854125,-263.469567,0.000167,2]
[380291708,1755637854134,-263.469567,0.000167,2]
[380291709,1755637854144,-151.0,0.000167,2]
[380291710,1755637854154,-151.0,0.000167,2]
[380291711,1755637854163,-187.934876,0.000167,2]
[380291712,1755637854172,-151.0,0.000167,2]
[380291713,1755637854181,-151.0,0.000167,2]
[380291714,1755637854190,-151.0,0.000167,2]
[380291715,1755637854200,-151.0,0.000167,2]
[380291716,1755637854209,-151.0,0.000167,2]
[380291717,1755637854218,-324.463709,0.000167,2]
[380291718,1755637854228,-324.463709,0.000167,2]
[380291719,1755637854237,-324.463709,0.000167,2]
[380291720,1755637854247,-324.463709,0.000167,2]
[380291721,1755637854255,-151.0,0.000167,2]
[380291722,1755637854265,-150.0,0.00016709,2]
[380291723,1755637854274,-500.0,0.00016712,2]
[380291724,1755637854283,-500.0,0.00016712,2]
[380291725,1755637854293,-3387.2,0.00016712,2]
[380291726,1755637854303,-226.64,0.00016712,2]
[380291727,1755637854312,-150.0,0.00016767,2]
[380291728,1755637854321,-2500.0,0.00016818,2]
[380291729,1755637854331,-2500.0,0.00016818,2]
[380291730,1755637854340,-2500.0,0.00016818,2]
[380291731,1755637854349,-150.0,0.00016826,2]
[380291732,1755637854358,-6290.09311253,0.00016852,2]
[380291733,1755637854367,-312.54651576,0.00016867,2]
[380291734,1755637854376,-150.0,0.00016884,2]
[380291735,1755637854386,-500.0,0.00016894,2]
[380291736,1755637854395,-500.0,0.00016894,2]
[380291737,1755637854404,-500.0,0.00016894,2]
[380291738,1755637854413,-1164.29977486,0.00016908,2]
[380291739,1755637854423,-3000.0,0.00016912,2]
[380291740,1755637854432,-1742.79484765,0.00016912,2]
[380291741,1755637854442,-2154.53416416,0.00016912,2]
[380291742,1755637854452,-2907.72380917,0.00016912,2]
[380291743,1755637854461,-3000.0,0.00016912,2]
[380291744,1755637854471,-150.0,0.00016942,2]
[380291745,1755637854480,-500.0,0.00016986,2]
[380291746,1755637854489,-500.0,0.00016986,2]
[380291747,1755637854498,-3387.2,0.00016986,2]
[380291748,1755637854507,-150.0,0.00017,2]
[380291749,1755637854517,-500.75490201,0.00017,2]
[380291750,1755637854526,-50381.23802664,0.00017,2]
[380291751,1755637854535,-292678.81,0.00017,2]
[380291752,1755637854544,-15829.76,0.00017,2]
[380291753,1755637854555,-300.0,0.00017,2]
[380291754,1755637854564,-151.0,0.00017,2]
[380291755,1755637854573,-151.0,0.00017,2]
[380291756,1755637854583,-233.351523,0.00017,2]
[380291757,1755637854592,-151.0,0.00017,2]
[380291758,1755637854601,-151.0,0.00017,2]
[380291759,1755637854611,-303.536632,0.00017,2]
[380291760,1755637854620,-151.0,0.00017,2]
[380291761,1755637854630,-303.536632,0.00017,2]
[380291762,1755637854639,-303.536632,0.00017,2]
[380291763,1755637854648,-303.536632,0.00017,2]
[380291764,1755637854657,-178.819034,0.00017,2]
[380291765,1755637854666,-151.0,0.00017,2]
[380291766,1755637854675,-151.0,0.00017,2]
[380291767,1755637854685,-151.0,0.00017,2]
[380291768,1755637854694,-151.0,0.00017,2]
[380291769,1755637854703,-151.0,0.00017,2]
[380291770,1755637854712,-151.0,0.00017,2]
[380291771,1755637854722,-151.0,0.00017,2]
[380291772,1755637854731,-230.750282,0.00017,2]
[380291773,1755637854740,-230.750282,0.00017,2]
[380291774,1755637854749,-230.750282,0.00017,2]
[380291775,1755637854758,-230.750282,0.00017,2]
[380291776,1755637854767,-151.0,0.00017,2]
[380291777,1755637854777,-151.0,0.00017,2]
[380291778,1755637854786,-151.0,0.00017,2]
[380291779,1755637854795,-213.118459,0.00017,2]
[380291780,1755637854806,-227.079215,0.00017,2]
[380291781,1755637854816,-151.0,0.00017,2]
[380291782,1755637854828,-617.46186,0.00017,2]
[380291783,1755637854837,-617.46186,0.00017,2]
[380291784,1755637854847,-617.46186,0.00017,2]
[380291785,1755637854856,-617.46186,0.00017,2]
[380291786,1755637854866,-399.205785,0.00017,2]
[380291787,1755637854875,-399.205785,0.00017,2]
[380291788,1755637854884,-399.205785,0.00017,2]
[380291789,1755637854894,-399.205785,0.00017,2]
[380291790,1755637854903,-157.337785,0.00017,2]
[380291791,1755637854913,-6714.570061,0.00017,2]
[380291792,1755637854922,-6714.570061,0.00017,2]
[380291793,1755637854931,-275.829102,0.00017,2]
[380291794,1755637854940,-151.0,0.00017,2]
[380291795,1755637854950,-6714.570061,0.00017,2]
[380291796,1755637854959,-377.91897,0.00017,2]
[380291797,1755637854968,-151.0,0.00017,2]
[380291798,1755637854977,-275.829102,0.00017,2]
[380291799,1755637854986,-151.0,0.00017,2]
[380291800,1755637854996,-377.91897,0.00017,2]
[380291801,1755637855005,-151.0,0.00017,2]
[380291802,1755637855014,-275.829102,0.00017,2]
[380291803,1755637855023,-151.0,0.00017,2]
[380291804,1755637855032,-6714.570061,0.00017,2]
[380291805,1755637855041,-377.91897,0.00017,2]
[380291806,1755637855051,-196.83313,0.00017,2]
[380291807,1755637855059,-275.829102,0.00017,2]
[380291808,1755637855069,-151.0,0.00017,2]
[380291809,1755637855078,-377.91897,0.00017,2]
[380291810,1755637855087,-151.0,0.00017,2]
[380291811,1755637855096,-292.701269,0.00017,2]
[380291812,1755637855106,-151.0,0.00017,2]
[380291813,1755637855115,-783.194687,0.00017,2]
[380291814,1755637855125,-151.0,0.00017,2]
[380291815,1755637855134,-783.194687,0.00017,2]
[380291816,1755637855144,-151.0,0.00017,2]
[380291817,1755637855153,-783.194687,0.00017,2]
[380291818,1755637855162,-783.194687,0.00017,2]
[380291819,1755637855172,-151.0,0.00017,2]
[380291820,1755637855181,-151.0,0.00017,2]
[380291821,1755637855190,-151.0,0.00017,2]
[380291822,1755637855199,-151.0,0.00017,2]
[380291823,1755637855208,-419.804674,0.00017,2]
[380291824,1755637855218,-419.804674,0.00017,2]
[380291825,1755637855227,-419.804674,0.00017,2]
[380291826,1755637855236,-151.0,0.00017,2]
[380291827,1755637855245,-419.804674,0.00017,2]
[380291828,1755637855254,-4463.62087,0.00017,2]
[380291829,1755637855263,-151.0,0.00017,2]
[380291830,1755637855272,-4463.62087,0.00017,2]
[380291831,1755637855282,-309.369611,0.00017,2]
[380291832,1755637855291,-4463.62087,0.00017,2]
[380291833,1755637855300,-325.171712,0.00017,2]
[380291834,1755637855309,-309.369611,0.00017,2]
[380291835,1755637855318,-151.0,0.00017,2]
[380291836,1755637855327,-951.594588,0.00017,2]
[380291837,1755637855337,-4463.62087,0.00017,2]
[380291838,1755637855346,-325.171712,0.00017,2]
[380291839,1755637855355,-151.0,0.00017,2]
[380291840,1755637855365,-951.594588,0.00017,2]
[380291841,1755637855375,-325.171712,0.00017,2]
[380291842,1755637855384,-951.594588,0.00017,2]
[380291843,1755637855393,-325.171712,0.00017,2]
[380291844,1755637855402,-951.594588,0.00017,2]
[380291845,1755637855411,-309.369611,0.00017,2]
[380291846,1755637855420,-151.0,0.00017,2]
[380291847,1755637855430,-175.315103,0.00017,2]
[380291848,1755637855439,-309.369611,0.00017,2]
[380291849,1755637855448,-151.0,0.00017,2]
[380291850,1755637855461,-175.315103,0.00017,2]
[380291851,1755637855470,-151.0,0.00017,2]
[380291852,1755637855480,-151.0,0.00017,2]
[380291853,1755637855489,-151.0,0.00017,2]
[380291854,1755637855499,-151.0,0.00017,2]
[380291855,1755637855508,-175.315103,0.00017,2]
[380291856,1755637855517,-919.606085,0.00017,2]
[380291857,1755637855527,-919.606085,0.00017,2]
[380291858,1755637855536,-175.315103,0.00017,2]
[380291859,1755637855545,-151.0,0.00017,2]
[380291860,1755637855555,-151.0,0.00017,2]
[380291861,1755637855565,-919.606085,0.00017,2]
[380291862,1755637855574,-249.40441,0.00017,2]
[380291863,1755637855583,-151.0,0.00017,2]
[380291864,1755637855593,-919.606085,0.00017,2]
[380291865,1755637855602,-151.652353,0.00017,2]
[380291866,1755637855611,-150.0,0.00017058,2]
[380291867,1755637855621,-152.0,0.00017065,3]
[380291868,1755637855631,-196.28,0.00017116,2]
[380291869,1755637855641,-500.0,0.00017168,2]
[380291870,1755637855654,-500.0,0.00017168,2]
[380291871,1755637855663,-371.49823721,0.00017168,2]
[380291872,1755637855673,-2462.52830758,0.00017192,2]
[380291873,1755637855692,-168.75726635,0.0001721,15]
[380291874,1755637855708,-160.0,0.00017213,2]
[380291875,1755637855727,-309.29654756,0.00017213,2]
[380291876,1755637855744,-334.5472959,0.00017213,2]
[380291877,1755637855760,-500.0,0.0001726,2]
[380291878,1755637855776,-500.0,0.0001726,2]
[380291879,1755637855793,-3387.2,0.0001726,2]
[380291880,1755637855813,-228.0,0.0001729,2]
[380291881,1755637855832,-3000.0,0.00017366,2]
[380291882,1755637855850,-3000.0,0.00017366,2]
[380291883,1755637855869,-2000.0,0.00017366,2]
[380291884,1755637855887,-500.0,0.00017442,2]
[380291885,1755637855907,-500.0,0.00017442,2]
[380291886,1755637855921,-3267.11024337,0.00017445,2]
[380291887,1755637855936,-3500.0,0.0001746,2]
[380291888,1755637855954,-3500.0,0.0001746,2]
[380291889,1755637855967,-150.0,0.00017499,2]
[380291890,1755637855988,-20000.0,0.000175,2]
[380291891,1755637856000,-193.223135,0.000175,2]
[380291892,1755637856013,-336.296648,0.000175,2]
[380291893,1755637856028,-151.0,0.000175,2]
[380291894,1755637856043,-193.223135,0.000175,2]
[380291895,1755637856059,-336.296648,0.000175,2]
[380291896,1755637856073,-193.223135,0.000175,2]
[380291897,1755637856088,-336.296648,0.000175,2]
[380291898,1755637856104,-193.223135,0.000175,2]
[380291899,1755637856121,-336.296648,0.000175,2]
[380291900,1755637856140,-151.0,0.000175,2]
[380291901,1755637856163,-151.0,0.000175,2]
[380291902,1755637856187,-151.0,0.000175,2]
[380291903,1755637856203,-151.0,0.000175,2]
[380291904,1755637856217,-151.0,0.000175,2]
[380291905,1755637856232,-151.0,0.000175,2]
[380291906,1755637856246,-151.0,0.000175,2]
[380291907,1755637856259,-267.226846,0.000175,2]
[380291908,1755637856274,-267.226846,0.000175,2]
[380291909,1755637856288,-267.226846,0.000175,2]
[380291910,1755637856304,-151.0,0.000175,2]
[380291911,1755637856319,-978.977009,0.000175,2]
[380291912,1755637856332,-267.226846,0.000175,2]
[380291913,1755637856346,-506.799535,0.000175,2]
[380291914,1755637856360,-151.0,0.000175,2]
[380291915,1755637856386,-195.053638,0.000175,2]
[380291916,1755637856400,-506.799535,0.000175,2]
[380291917,1755637856413,-978.977009,0.000175,2]
[380291918,1755637856427,-151.0,0.000175,2]
[380291919,1755637856441,-506.799535,0.000175,2]
[380291920,1755637856454,-151.0,0.000175,2]
[380291921,1755637856469,-978.977009,0.000175,2]
[380291922,1755637856491,-506.799535,0.000175,2]
[380291923,1755637856512,-978.977009,0.000175,2]
[380291924,1755637856530,-151.0,0.000175,2]
[380291925,1755637856549,-151.0,0.000175,2]
[380291926,1755637856568,-151.0,0.000175,2]
[380291927,1755637856585,-151.0,0.000175,2]
[380291928,1755637856603,-151.0,0.000175,2]
[380291929,1755637856619,-151.0,0.000175,2]
[380291930,1755637856636,-151.0,0.000175,2]
[380291931,1755637856653,-151.0,0.000175,2]
[380291932,1755637856669,-151.0,0.000175,2]
[380291933,1755637856685,-391.490507,0.000175,2]
[380291934,1755637856701,-391.490507,0.000175,2]
[380291935,1755637856716,-502.149321,0.000175,2]
[380291936,1755637856732,-391.490507,0.000175,2]
[380291937,1755637856747,-435.296319,0.000175,2]
[380291938,1755637856762,-151.0,0.000175,2]
[380291939,1755637856779,-391.490507,0.000175,2]
[380291940,1755637856794,-435.296319,0.000175,2]
[380291941,1755637856809,-246.917818,0.000175,2]
[380291942,1755637856827,-435.296319,0.000175,2]
[380291943,1755637856841,-502.149321,0.000175,2]
[380291944,1755637856856,-502.149321,0.000175,2]
[380291945,1755637856872,-435.296319,0.000175,2]
[380291946,1755637856887,-502.149321,0.000175,2]
[380291947,1755637856903,-151.0,0.000175,2]
[380291948,1755637856918,-151.0,0.000175,2]
[380291949,1755637856932,-151.0,0.000175,2]
[380291950,1755637856946,-151.0,0.000175,2]
[380291951,1755637856961,-3990.379,0.00017522,2]
[380291952,1755637856976,-1172.0,0.00017522,2]
[380291953,1755637856991,-371.766,0.00017522,2]
[380291954,1755637857006,-432.24906505,0.00017534,2]
[380291955,1755637857020,-500.0,0.00017534,2]
[380291956,1755637857034,-3387.2,0.00017534,2]
[380291957,1755637857049,-151.0,0.00017535,2]
[380291958,1755637857063,-151.0,0.00017535,2]
[380291959,1755637857077,-151.0,0.00017535,2]
[380291960,1755637857091,-151.0,0.00017535,2]
[380291961,1755637857105,-151.0,0.00017535,2]
[380291962,1755637857124,-151.0,0.00017535,2]
[380291963,1755637857145,-151.0,0.00017535,2]
[380291964,1755637857164,-151.0,0.00017535,2]
[380291965,1755637857178,-151.0,0.00017535,2]
[380291966,1755637857192,-151.0,0.00017535,2]
[380291967,1755637857206,-151.0,0.00017535,2]
[380291968,1755637857220,-500.0,0.00017599,2]
[380291969,1755637857234,-4000.0,0.00017624,3]
[380291970,1755637857250,-500.0,0.00017688,2]
[380291971,1755637857265,-637.0851422,0.00017716,2]
[380291972,1755637857279,-500.0,0.00017716,2]
[380291973,1755637857293,-180.0,0.00017726,2]
[380291974,1755637857307,-500.0,0.00017808,2]
[380291975,1755637857321,-3387.2,0.00017808,2]
[380291976,1755637857335,-183.33333333,0.00017849,2]
[380291977,1755637857349,-160.0,0.0001789,3]
[380291978,1755637857363,-200.0,0.00017904,2]
[380291979,1755637857377,-168.75726635,0.00017913,17]
[380291980,1755637857391,-3500.0,0.00017914,2]
[380291981,1755637857405,-3500.0,0.00017914,2]
[380291982,1755637857418,-150.0,0.00017932,2]
[380291983,1755637857432,-537.0,0.00017965,2]
[380291984,1755637857446,-500.0,0.00017966,2]
[380291985,1755637857460,-500.0,0.0001799,2]
[380291986,1755637857474,-150.0,0.00017999,2]
[380291987,1755637857487,-150.0,0.00017999,2]
[380291988,1755637857501,-150.0,0.00017999,2]
[380291989,1755637857514,-202.15989483,0.00017999,2]
[380291990,1755637857527,-3945.29299125,0.00018,3]
[380291991,1755637857541,-497.33341655,0.00018,2]
[380291992,1755637857554,-2000.0,0.00018,2]
[380291993,1755637857568,-13602.80032006,0.00018,3]
[380291994,1755637857581,-487675.36111776,0.00018,2]
[380291995,1755637857595,-2000.0,0.00018,2]
[380291996,1755637857608,-3095.0,0.00018,2]
[380291997,1755637857622,-500.75490201,0.00018,2]
[380291998,1755637857636,-802548.64932428,0.00018,2]
[380291999,1755637859687,-142.30219338,0.00018,2]
[380292000,1755637859696,-1786.99674052,0.00018,2]
[380292001,1755637859795,-1063.5,0.00018,2]
[380292002,1755637859807,-49067.73431081,0.00018,2]
[380292003,1755637859840,-1785.66782161,0.00018,2]
[380292004,1755637859861,-469.65613326,0.00018,2]
[380292005,1755637860517,-66209.05471195,0.00018,2]
[380292006,1755637860527,-1165.99322672,0.00018,2]
[380292007,1755637860537,-4000.0,0.00018,2]
[380292008,1755637860547,-12889.43377054,0.00018,2]
[380292009,1755637860578,-1822.085366,0.00013016,2]
[380292010,1755637860588,-8889.71213042,0.00018,2]
[380292011,1755637860600,-3496.71411905,0.00018,2]
[380292012,1755637860785,-14858.03965872,0.00018,2]
[380292013,1755637860846,-101398.11472035,0.00018,2]
[380292014,1755637862606,-1822.085366,0.00013016,2]
[380292015,1755637862615,-2321.40364433,0.00013699,2]
[380292016,1755637864574,-500.0,9.598e-05,2]
[380292017,1755637864584,-500.0,9.598e-05,2]
[380292018,1755637864594,-500.0,9.598e-05,2]
[380292019,1755637864603,-500.0,9.598e-05,2]
[380292020,1755637864613,-500.0,9.598e-05,2]
[380292021,1755637864622,-338.77994045,9.598e-05,2]
[380292022,1755637864631,-500.0,9.598e-05,2]
[380292023,1755637864641,-500.0,9.598e-05,2]
[380292024,1755637864650,-500.0,9.598e-05,2]
[380292025,1755637864659,-500.0,9.598e-05,2]
[380292026,1755637864668,-151.0,0.00013016,2]
[380292027,1755637864678,-1822.085366,0.00013016,2]
[380292028,1755637864691,-151.0,0.00013016,2]
[380292029,1755637864700,-1546.05296861,0.00013016,2]
[380292030,1755637864750,-276.03239739,0.00013016,2]
[380292031,1755637864759,-2576.57302567,0.00013699,2]
[380292032,1755637864769,-472.7945769,0.00013699,2]
[380292405,1755638928576,-205.0,9.8e-05,2]
[380292406,1755638928600,-5125.00632542,0.0001,2]
[380292407,1755638928624,-203.97867236,0.00010897,2]
[380292408,1755638928650,-537.64221561,0.00010897,2]
[380292409,1755638928674,-166.66666667,0.00010898,2]
[380292410,1755638928698,-13761.70611994,0.00010898,2]
[380292445,1755639031501,-600.0,0.000102,3]
[380292446,1755639031511,-175.29872496,0.000103,3]
[380292447,1755639031548,-1024.70127504,0.000103,3]
[380292448,1755639031558,-1800.0,0.000104,3]
[380292449,1755639031567,-2400.0,0.000105,3]
[380292450,1755639031576,-1200.0,0.00010599,2]